{"text_format":"3","workbook":"xlsx","n_sheets":1,"sheets":["INVENTÁRNÍ SEZNAM ZAŘÍZENÍ"],"not_rendered":{"defined_names":5},"read":"whole","date_system":"1900"}

{"sheet":"INVENTÁRNÍ SEZNAM ZAŘÍZENÍ","index":0,"n_rows":9,"n_cols":19,"rows_kept":9,"merged":[[0,1,0,5],[0,6,0,9],[0,10,0,12],[0,13,0,14],[2,1,2,6],[2,7,2,18]]}
[null,"INVENTÁRNÍ SEZNAM ZAŘÍZENÍ"]
[]
[null,"FYZICKÝ STAV",{"$nulls":5},"FINANČNÍ STATUS"]
[null,"Inventární nebo sériové číslo","Popis položky\n(značka a model)","Umístění","Stav","Dodavatel","Zbývající roky životnosti ","Počáteční\nhodnota","První splátka","Datum koupě nebo pořízení na leasing","Doba splácení\nv letech","Úroková sazba","Měsíční splátka","Měsíční provozní náklady","Celkové měsíční náklady","Očekávaná hodnota po splacení","Roční lineární\nodpis","Měsíční lineární\nodpis","Současná hodnota"]
[null,123,"Značka a model","Hlavní pobočka","Dobrý","místní",5,{"v":600000,"d":"600,000.00 Kč"},{"v":100000,"d":"100,000.00 Kč"},{"$f":"DATE(YEAR(TODAY())-2, 1,1)","v":"2016-01-01"},4,{"v":0.1,"d":"10.00%"},{"$f":"IFERROR(IF(AND(Data[[#This Row],[Počáteční\nhodnota]]>0,Data[[#This Row],[Počáteční\nhodnota]]<>Data[[#This Row],[První splátka]]),-1*PMT(Data[[#This Row],[Úroková sazba]]/12,Data[[#This Row],[Doba splácení\nv letech]]*12,Data[[#This Row],[Počáteční\nhodnota]]-Data[[#This Row],[První splátka]]),0),0)","v":{"v":12681.291717373595,"d":"12,681.29 Kč"}},{"v":4000,"d":"4,000.00 Kč"},{"$f":"IFERROR(Data[[#This Row],[Měsíční provozní náklady]]+Data[[#This Row],[Měsíční splátka]],\"\")","v":{"v":16681.291717373595,"d":"16,681.29 Kč"}},{"v":400000,"d":"400,000.00 Kč"},{"$f":"IFERROR(IF(Data[[#This Row],[Počáteční\nhodnota]]>0,SLN(Data[[#This Row],[Počáteční\nhodnota]],Data[[#This Row],[Očekávaná hodnota po splacení]],Data[[#This Row],[Zbývající roky životnosti ]]),0),0)","v":{"v":40000,"d":"40,000.00 Kč"}},{"$f":"IFERROR(Data[[#This Row],[Roční lineární\nodpis]]/12,0)","v":{"v":3333.3333333333335,"d":"3,333.33 Kč"}},{"$f":"IFERROR(Data[[#This Row],[Počáteční\nhodnota]]-(Data[[#This Row],[Roční lineární\nodpis]]*((TODAY()-Data[[#This Row],[Datum koupě nebo pořízení na leasing]])/365)),0)","v":{"v":500273.9726027397,"d":"500,273.97 Kč"}}]
[null,456,"Značka a model","Hlavní pobočka","Vynikající","místní",3,{"v":100000,"d":"100,000.00 Kč"},{"v":100000,"d":"100,000.00 Kč"},{"$f":"DATE(YEAR(TODAY())-1, 1,1)","v":"2017-01-01"},null,null,{"$f":"IFERROR(IF(AND(Data[[#This Row],[Počáteční\nhodnota]]>0,Data[[#This Row],[Počáteční\nhodnota]]<>Data[[#This Row],[První splátka]]),-1*PMT(Data[[#This Row],[Úroková sazba]]/12,Data[[#This Row],[Doba splácení\nv letech]]*12,Data[[#This Row],[Počáteční\nhodnota]]-Data[[#This Row],[První splátka]]),0),0)","v":{"v":0,"d":"0.00 Kč"}},{"v":400,"d":"400.00 Kč"},{"$f":"IFERROR(Data[[#This Row],[Měsíční provozní náklady]]+Data[[#This Row],[Měsíční splátka]],\"\")","v":{"v":400,"d":"400.00 Kč"}},null,{"$f":"IFERROR(IF(Data[[#This Row],[Počáteční\nhodnota]]>0,SLN(Data[[#This Row],[Počáteční\nhodnota]],Data[[#This Row],[Očekávaná hodnota po splacení]],Data[[#This Row],[Zbývající roky životnosti ]]),0),0)","v":{"v":33333.333333333336,"d":"33,333.33 Kč"}},{"$f":"IFERROR(Data[[#This Row],[Roční lineární\nodpis]]/12,0)","v":{"v":2777.777777777778,"d":"2,777.78 Kč"}},{"$f":"IFERROR(Data[[#This Row],[Počáteční\nhodnota]]-(Data[[#This Row],[Roční lineární\nodpis]]*((TODAY()-Data[[#This Row],[Datum koupě nebo pořízení na leasing]])/365)),0)","v":{"v":50319.63470319634,"d":"50,319.63 Kč"}}]
[null,789,"Značka a model","Pobočka Východ","Ucházející","místní",6,{"v":1000000,"d":"1,000,000.00 Kč"},{"v":400000,"d":"400,000.00 Kč"},{"$f":"TODAY()","v":"2018-06-29"},5,{"v":0.05,"d":"5.00%"},{"$f":"IFERROR(IF(AND(Data[[#This Row],[Počáteční\nhodnota]]>0,Data[[#This Row],[Počáteční\nhodnota]]<>Data[[#This Row],[První splátka]]),-1*PMT(Data[[#This Row],[Úroková sazba]]/12,Data[[#This Row],[Doba splácení\nv letech]]*12,Data[[#This Row],[Počáteční\nhodnota]]-Data[[#This Row],[První splátka]]),0),0)","v":{"v":11322.740186406561,"d":"11,322.74 Kč"}},{"v":800,"d":"800.00 Kč"},{"$f":"IFERROR(Data[[#This Row],[Měsíční provozní náklady]]+Data[[#This Row],[Měsíční splátka]],\"\")","v":{"v":12122.740186406561,"d":"12,122.74 Kč"}},{"v":30000,"d":"30,000.00 Kč"},{"$f":"IFERROR(IF(Data[[#This Row],[Počáteční\nhodnota]]>0,SLN(Data[[#This Row],[Počáteční\nhodnota]],Data[[#This Row],[Očekávaná hodnota po splacení]],Data[[#This Row],[Zbývající roky životnosti ]]),0),0)","v":{"v":161666.66666666666,"d":"161,666.67 Kč"}},{"$f":"IFERROR(Data[[#This Row],[Roční lineární\nodpis]]/12,0)","v":{"v":13472.22222222222,"d":"13,472.22 Kč"}},{"$f":"IFERROR(Data[[#This Row],[Počáteční\nhodnota]]-(Data[[#This Row],[Roční lineární\nodpis]]*((TODAY()-Data[[#This Row],[Datum koupě nebo pořízení na leasing]])/365)),0)","v":{"v":1000000,"d":"1,000,000.00 Kč"}}]
[{"$nulls":12},{"$f":"IFERROR(IF(AND(Data[[#This Row],[Počáteční\nhodnota]]>0,Data[[#This Row],[Počáteční\nhodnota]]<>Data[[#This Row],[První splátka]]),-1*PMT(Data[[#This Row],[Úroková sazba]]/12,Data[[#This Row],[Doba splácení\nv letech]]*12,Data[[#This Row],[Počáteční\nhodnota]]-Data[[#This Row],[První splátka]]),0),0)","v":{"v":0,"d":"0.00 Kč"}},null,{"$f":"IFERROR(Data[[#This Row],[Měsíční provozní náklady]]+Data[[#This Row],[Měsíční splátka]],\"\")","v":{"v":0,"d":"0.00 Kč"}},null,{"$f":"IFERROR(IF(Data[[#This Row],[Počáteční\nhodnota]]>0,SLN(Data[[#This Row],[Počáteční\nhodnota]],Data[[#This Row],[Očekávaná hodnota po splacení]],Data[[#This Row],[Zbývající roky životnosti ]]),0),0)","v":{"v":0,"d":"0.00 Kč"}},{"$f":"IFERROR(Data[[#This Row],[Roční lineární\nodpis]]/12,0)","v":{"v":0,"d":"0.00 Kč"}},{"$f":"IFERROR(Data[[#This Row],[Počáteční\nhodnota]]-(Data[[#This Row],[Roční lineární\nodpis]]*((TODAY()-Data[[#This Row],[Datum koupě nebo pořízení na leasing]])/365)),0)","v":{"v":0,"d":"0.00 Kč"}}]
[{"$nulls":12},{"$f":"IFERROR(IF(AND(Data[[#This Row],[Počáteční\nhodnota]]>0,Data[[#This Row],[Počáteční\nhodnota]]<>Data[[#This Row],[První splátka]]),-1*PMT(Data[[#This Row],[Úroková sazba]]/12,Data[[#This Row],[Doba splácení\nv letech]]*12,Data[[#This Row],[Počáteční\nhodnota]]-Data[[#This Row],[První splátka]]),0),0)","v":{"v":0,"d":"0.00 Kč"}},null,{"$f":"IFERROR(Data[[#This Row],[Měsíční provozní náklady]]+Data[[#This Row],[Měsíční splátka]],\"\")","v":{"v":0,"d":"0.00 Kč"}},null,{"$f":"IFERROR(IF(Data[[#This Row],[Počáteční\nhodnota]]>0,SLN(Data[[#This Row],[Počáteční\nhodnota]],Data[[#This Row],[Očekávaná hodnota po splacení]],Data[[#This Row],[Zbývající roky životnosti ]]),0),0)","v":{"v":0,"d":"0.00 Kč"}},{"$f":"IFERROR(Data[[#This Row],[Roční lineární\nodpis]]/12,0)","v":{"v":0,"d":"0.00 Kč"}},{"$f":"IFERROR(Data[[#This Row],[Počáteční\nhodnota]]-(Data[[#This Row],[Roční lineární\nodpis]]*((TODAY()-Data[[#This Row],[Datum koupě nebo pořízení na leasing]])/365)),0)","v":{"v":0,"d":"0.00 Kč"}}]